fUSD/lending_fUSD_20251210
["ID","MTS","AMOUNT","RATE_DAILY","PERIOD"]
[398085269,1765362657852,-500.0,0.00013972,2]
[398085270,1765362657864,-500.0,0.00013972,2]
[398085271,1765362657876,-500.0,0.00013972,2]
[398085272,1765362657892,-500.0,0.00013972,2]
[398085273,1765362657904,-1055.27,0.00013972,2]
[398085274,1765362657917,-540.69,0.00013972,2]
[398085275,1765362657930,-500.0,0.00013972,2]
[398085276,1765362657943,-500.0,0.00013972,2]
[398085277,1765362657956,-500.0,0.00013972,2]
[398085278,1765362657968,-709.23,0.00013972,2]
[398085279,1765362657980,-663.75,0.00013972,2]
[398085280,1765362657993,-500.0,0.00013972,2]
[398085281,1765362658005,-500.0,0.00013972,2]
[398085282,1765362658017,-500.0,0.00013972,2]
[398085283,1765362658029,-500.0,0.00013972,2]
[398085284,1765362658041,-500.0,0.00013972,2]
[398085285,1765362658053,-554.6,0.00013972,2]
[398085286,1765362658065,-500.0,0.00013972,2]
[398085287,1765362658077,-578.1,0.00013972,2]
[398085288,1765362658089,-500.0,0.00013972,2]
[398085289,1765362658102,-500.0,0.00013972,2]
[398085290,1765362658114,-779.12,0.00013972,2]
[398085291,1765362658126,-703.35,0.00013972,2]
[398085292,1765362658138,-649.6,0.00013972,2]
[398085293,1765362658150,-564.93655288,0.00013972,2]
[398085294,1765362658164,-500.0,0.00013972,2]
[398085295,1765362658178,-500.0,0.00013972,2]
[398085296,1765362658190,-500.0,0.00013972,2]
[398085297,1765362658203,-562.7,0.00013972,2]
[398085298,1765362658216,-500.0,0.00013972,2]
[398085299,1765362658228,-500.0,0.00013972,2]
[398085300,1765362658240,-500.0,0.00013972,2]
[398085301,1765362658253,-500.0,0.00013972,2]
[398085302,1765362658265,-500.0,0.00013972,2]
[398085303,1765362658277,-514.26,0.00013972,2]
[398085304,1765362658290,-1485.91,0.00013972,2]
[398085305,1765362658302,-698.57,0.00013972,2]
[398085306,1765362658314,-500.0,0.00013972,2]
[398085307,1765362658327,-500.0,0.00013972,2]
[398085308,1765362658339,-500.0,0.00013972,2]
[398085309,1765362658351,-500.0,0.00013972,2]
[398085310,1765362658363,-586.84,0.00013972,2]
[398085311,1765362658376,-1368.99,0.00013972,2]
[398085312,1765362658389,-500.0,0.00013972,2]
[398085313,1765362658401,-500.0,0.00013972,2]
[398085314,1765362658414,-500.0,0.00013972,2]
[398085315,1765362658427,-984.67,0.00013972,2]
[398085316,1765362658440,-500.0,0.00013972,2]
[398085317,1765362658454,-500.0,0.00013972,2]
[398085318,1765362658467,-500.0,0.00013972,2]
[398085319,1765362658480,-500.0,0.00013972,2]
[398085320,1765362658492,-500.0,0.00013972,2]
[398085321,1765362658505,-500.0,0.00013972,2]
[398085322,1765362658517,-500.0,0.00013972,2]
[398085323,1765362658530,-494.5601158,0.00013972,2]
[398085324,1765362658543,-702.18,0.00013972,2]
[398085325,1765362658555,-500.0,0.00013972,2]
[398085326,1765362658568,-500.0,0.00013972,2]
[398085327,1765362658585,-430.73582299,0.00013972,2]
[398085328,1765362658597,-500.0,0.00013972,2]
[398085329,1765362658610,-500.0,0.00013972,2]
[398085330,1765362658624,-500.0,0.00013972,2]
[398085331,1765362658637,-500.0,0.00013972,2]
[398085332,1765362658650,-500.0,0.00013972,2]
[398085333,1765362658662,-500.0,0.00013972,2]
[398085334,1765362658676,-500.0,0.00013972,2]
[398085335,1765362658689,-660.56,0.00013972,2]
[398085336,1765362658701,-2063.84,0.00013972,2]
[398085337,1765362658713,-592.85011524,0.00013972,2]
[398085338,1765362658726,-500.0,0.00013972,2]
[398085339,1765362658739,-500.41,0.00013972,2]
[398085340,1765362658753,-616.73557988,0.00013972,2]
[398085341,1765362658766,-500.0,0.00013972,2]
[398085342,1765362658778,-500.0,0.00013972,2]
[398085343,1765362658791,-500.0,0.00013972,2]
[398085344,1765362658804,-2807.75,0.00013972,2]
[398085345,1765362658817,-204.25644475,0.00013972,2]
[398085346,1765362658829,-636.8,0.00013972,2]
[398085347,1765362658842,-505.65,0.00013972,2]
[398085348,1765362658854,-636.84,0.00013972,2]
[398085349,1765362658867,-500.0,0.00013972,2]
[398085350,1765362658879,-500.0,0.00013972,2]
[398085351,1765362658891,-500.0,0.00013972,2]
[398085352,1765362658903,-500.0,0.00013972,2]
[398085353,1765362658918,-500.0,0.00013972,2]
[398085354,1765362658932,-605.38519579,0.00013973,2]
[398085355,1765362658945,-166.64,0.00013981,2]
[398085356,1765362658959,-173.0,0.00014001,2]
[398085357,1765362658973,-255.0,0.00014004,2]
[398085358,1765362658983,-300.0,0.00014059,2]
[398085359,1765362658993,-150.0,0.00014075,2]
[398085360,1765362659002,-1680.0,0.00014099,2]
[398085361,1765362659011,-173.0,0.00014137,2]
[398085362,1765362659021,-513.74794916,0.00014146,2]
[398085363,1765362659030,-173.0,0.00014198,2]
[398085364,1765362659039,-220.60857273,0.00014212,2]
[398085365,1765362659049,-445.70194424,0.0001423,2]
[398085366,1765362659058,-151.0,0.00014234,2]
[398085367,1765362659068,-1301.0,0.00014234,2]
[398085368,1765362659078,-553.64373807,0.00014234,2]
[398085369,1765362659087,-151.0,0.00014234,2]
[398085370,1765362659096,-767.64499326,0.00014234,2]
[398085371,1765362659403,-201.93286099,0.00014234,2]
[398085372,1765362659439,-151.0,0.00014234,2]
[398085373,1765362659460,-2798.0,0.00014237,2]
[398085374,1765362659470,-297.97121463,0.00014245,2]
[398085375,1765362659480,-183.43013093,0.00014245,2]
[398085376,1765362659489,-500.0,0.00014245,2]
[398085377,1765362659498,-500.0,0.00014246,2]
[398085378,1765362659508,-500.0,0.00014246,2]
[398085379,1765362659518,-500.0,0.00014246,2]
[398085380,1765362659527,-630.14,0.00014246,2]
[398085381,1765362659537,-500.0,0.00014246,2]
[398085382,1765362659546,-500.0,0.00014246,2]
[398085383,1765362659555,-245.02784675,0.00014246,2]
[398085384,1765362659564,-500.0,0.00014246,2]
[398085385,1765362659578,-500.0,0.00014246,2]
[398085386,1765362659587,-581.58070967,0.00014246,2]
[398085387,1765362659597,-445.03521834,0.00014246,2]
[398085388,1765362659605,-689.37,0.00014246,2]
[398085389,1765362659615,-500.0,0.00014246,2]
[398085390,1765362659626,-500.0,0.00014246,2]
[398085391,1765362659636,-511.87311819,0.00014246,2]
[398085392,1765362659646,-500.0,0.00014246,2]
[398085393,1765362659658,-500.0,0.00014246,2]
[398085394,1765362659669,-500.0,0.00014246,2]
[398085395,1765362659678,-500.0,0.00014246,2]
[398085396,1765362659688,-500.0,0.00014246,2]
[398085397,1765362659697,-500.0,0.00014246,2]
[398085398,1765362659706,-500.0,0.00014246,2]
[398085399,1765362659715,-197.28448755,0.00014246,2]
[398085400,1765362659724,-500.0,0.00014246,2]
[398085401,1765362659734,-500.0,0.00014246,2]
[398085402,1765362659744,-500.0,0.00014246,2]
[398085403,1765362659753,-500.0,0.00014246,2]
[398085404,1765362659762,-509.42791286,0.00014246,2]
[398085405,1765362659771,-500.0,0.00014246,2]
[398085406,1765362659780,-500.0,0.00014246,2]
[398085407,1765362659789,-500.0,0.00014246,2]
[398085408,1765362659799,-500.0,0.00014246,2]
[398085409,1765362659808,-500.0,0.00014246,2]
[398085410,1765362659818,-500.0,0.00014246,2]
[398085411,1765362659827,-500.0,0.00014246,2]
[398085412,1765362659836,-500.0,0.00014246,2]
[398085413,1765362659845,-500.0,0.00014246,2]
[398085414,1765362659854,-500.0,0.00014246,2]
[398085415,1765362659863,-500.0,0.00014246,2]
[398085416,1765362659872,-508.97914009,0.00014246,2]
[398085417,1765362659881,-500.0,0.00014246,2]
[398085418,1765362659890,-500.0,0.00014246,2]
[398085419,1765362659898,-500.0,0.00014246,2]
[398085420,1765362659909,-500.0,0.00014246,2]
[398085421,1765362659920,-500.0,0.00014246,2]
[398085422,1765362659928,-500.0,0.00014246,2]
[398085423,1765362659938,-500.0,0.00014246,2]
[398085424,1765362659947,-500.0,0.00014246,2]
[398085425,1765362659956,-500.0,0.00014246,2]
[398085426,1765362659966,-500.0,0.00014246,2]
[398085427,1765362659976,-500.0,0.00014246,2]
[398085428,1765362659985,-500.0,0.00014246,2]
[398085429,1765362659994,-500.0,0.00014246,2]
[398085430,1765362660004,-500.0,0.00014246,2]
[398085431,1765362660013,-500.0,0.00014246,2]
[398085432,1765362660022,-500.0,0.00014246,2]
[398085433,1765362660031,-597.84,0.00014246,2]
[398085434,1765362660041,-500.0,0.00014246,2]
[398085435,1765362660051,-500.0,0.00014246,2]
[398085436,1765362660060,-500.0,0.00014246,2]
[398085437,1765362660070,-500.0,0.00014246,2]
[398085438,1765362660080,-500.0,0.00014246,2]
[398085439,1765362660090,-500.0,0.00014246,2]
[398085440,1765362660100,-500.0,0.00014246,2]
[398085441,1765362660110,-500.0,0.00014246,2]
[398085442,1765362660120,-500.0,0.00014246,2]
[398085443,1765362660128,-500.0,0.00014246,2]
[398085444,1765362660138,-500.0,0.00014246,2]
[398085445,1765362660147,-327.62124149,0.00014246,2]
[398085446,1765362660157,-500.0,0.00014246,2]
[398085447,1765362660168,-500.0,0.00014246,2]
[398085448,1765362660178,-500.0,0.00014246,2]
[398085449,1765362660187,-500.0,0.00014246,2]
[398085450,1765362660197,-500.0,0.00014246,2]
[398085451,1765362660207,-500.0,0.00014246,2]
[398085452,1765362660218,-500.0,0.00014246,2]
[398085453,1765362660232,-500.0,0.00014246,2]
[398085454,1765362660242,-567.43,0.00014246,2]
[398085455,1765362660251,-500.0,0.00014246,2]
[398085456,1765362660260,-500.0,0.00014246,2]
[398085457,1765362660270,-500.0,0.00014246,2]
[398085458,1765362660279,-538.42482976,0.00014246,2]
[398085459,1765362660290,-500.0,0.00014246,2]
[398085460,1765362660306,-500.0,0.00014246,2]
[398085461,1765362660316,-562.62,0.00014246,2]
[398085462,1765362660325,-545.38,0.00014246,2]
[398085463,1765362660334,-500.0,0.00014246,2]
[398085464,1765362660343,-500.0,0.00014246,2]
[398085465,1765362660352,-500.0,0.00014246,2]
[398085466,1765362660362,-505.52,0.00014246,2]
[398085467,1765362660371,-778.96,0.00014246,2]
[398085468,1765362660380,-500.0,0.00014246,2]
[398085469,1765362660389,-559.4,0.00014246,2]
[398085470,1765362660399,-500.0,0.00014246,2]
[398085471,1765362660409,-1090.31,0.00014246,2]
[398085472,1765362660419,-500.0,0.00014246,2]
[398085473,1765362660428,-503.46410607,0.00014246,2]
[398085474,1765362660438,-500.0,0.00014246,2]
[398085475,1765362660447,-500.0,0.00014246,2]
[398085476,1765362660456,-500.0,0.00014246,2]
[398085477,1765362660465,-500.0,0.00014246,2]
[398085478,1765362660477,-543.51044901,0.00014246,2]
[398085479,1765362660486,-524.47,0.00014246,2]
[398085480,1765362660495,-500.0,0.00014246,2]
[398085481,1765362660506,-569.71,0.00014246,2]
[398085482,1765362660515,-500.0,0.00014246,2]
[398085483,1765362660525,-500.0,0.00014246,2]
[398085484,1765362660535,-564.89,0.00014246,2]
[398085485,1765362660545,-500.0,0.00014246,2]
[398085486,1765362660555,-500.0,0.00014246,2]
[398085487,1765362660565,-500.0,0.00014246,2]
[398085488,1765362660575,-648.28,0.00014246,2]
[398085489,1765362660589,-500.0,0.00014246,2]
[398085490,1765362660599,-623.5,0.00014246,2]
[398085491,1765362660609,-500.0,0.00014246,2]
[398085492,1765362660619,-500.0,0.00014246,2]
[398085493,1765362660629,-500.0,0.00014246,2]
[398085494,1765362660638,-500.0,0.00014246,2]
[398085495,1765362660648,-749.67,0.00014246,2]
[398085496,1765362660661,-500.0,0.00014246,2]
[398085497,1765362660672,-500.0,0.00014246,2]
[398085498,1765362660682,-500.0,0.00014246,2]
[398085499,1765362660691,-500.0,0.00014246,2]
[398085500,1765362660700,-500.0,0.00014246,2]
[398085501,1765362660709,-500.0,0.00014246,2]
[398085502,1765362660718,-500.0,0.00014246,2]
[398085503,1765362660727,-500.0,0.00014246,2]
[398085504,1765362660736,-500.0,0.00014246,2]
[398085505,1765362660745,-500.0,0.00014246,2]
[398085506,1765362660754,-159.86401932,0.00014246,2]
[398085507,1765362662080,-203.41976555,0.00012809,2]
[398085508,1765362662090,-164.0,0.00013451,2]
[398085509,1765362662099,-500.0,0.00013698,2]
[398085510,1765362662328,-500.0,0.00013698,2]
[398085511,1765362662339,-500.0,0.00013698,2]
[398085512,1765362662353,-500.0,0.00013972,2]
[398085513,1765362662362,-500.0,0.00013972,2]
[398085514,1765362662370,-340.13598068,0.00014246,2]
[398085515,1765362662379,-1083.26,0.00014246,2]
[398085516,1765362662392,-500.0,0.00014246,2]
[398085517,1765362662401,-500.0,0.00014246,2]
[398085518,1765362662410,-652.81,0.00014246,2]
[398085519,1765362662421,-500.0,0.00014246,2]
[398085520,1765362662430,-500.0,0.00014246,2]
[398085521,1765362662439,-500.0,0.00014246,2]
[398085522,1765362662448,-673.07,0.00014246,2]
[398085523,1765362662457,-500.0,0.00014246,2]
[398085524,1765362662468,-614.53,0.00014246,2]
[398085525,1765362662477,-500.0,0.00014246,2]
[398085526,1765362662487,-500.0,0.00014246,2]
[398085527,1765362662496,-500.0,0.00014246,2]
[398085528,1765362662505,-1584.6,0.00014246,2]
[398085529,1765362662514,-500.0,0.00014246,2]
[398085530,1765362662523,-500.0,0.00014246,2]
[398085531,1765362662532,-500.0,0.00014246,2]
[398085532,1765362662542,-500.0,0.00014246,2]
[398085533,1765362662551,-500.0,0.00014246,2]
[398085534,1765362662560,-570.71,0.00014246,2]
[398085535,1765362662569,-500.0,0.00014246,2]
[398085536,1765362662581,-500.0,0.00014246,2]
[398085537,1765362662590,-500.0,0.00014246,2]
[398085538,1765362662599,-529.17,0.00014246,2]
[398085539,1765362662608,-500.0,0.00014246,2]
[398085540,1765362662619,-650.77,0.00014246,2]
[398085541,1765362662628,-500.0,0.00014246,2]
[398085542,1765362662637,-529.18,0.00014246,2]
[398085543,1765362662646,-702.83,0.00014246,2]
[398085544,1765362662657,-500.0,0.00014246,2]
[398085545,1765362662668,-500.0,0.00014246,2]
[398085546,1765362662677,-500.0,0.00014246,2]
[398085547,1765362662686,-500.0,0.00014246,2]
[398085548,1765362662695,-500.0,0.00014246,2]
[398085549,1765362662704,-500.0,0.00014246,2]
[398085550,1765362662713,-500.0,0.00014246,2]
[398085551,1765362662722,-500.0,0.00014246,2]
[398085552,1765362662731,-500.0,0.00014246,2]
[398085553,1765362662741,-500.0,0.00014246,2]
[398085554,1765362662750,-500.0,0.00014246,2]
[398085555,1765362662759,-500.0,0.00014246,2]
[398085556,1765362662768,-500.0,0.00014246,2]
[398085557,1765362662777,-500.0,0.00014246,2]
[398085558,1765362662786,-790.12,0.00014246,2]
[398085559,1765362662794,-500.0,0.00014246,2]
[398085560,1765362662803,-500.0,0.00014246,2]
[398085561,1765362662812,-615.30404314,0.00014246,2]
[398085562,1765362662821,-500.0,0.00014246,2]
[398085563,1765362662830,-500.0,0.00014246,2]
[398085564,1765362662839,-500.0,0.00014246,2]
[398085565,1765362662847,-663.56,0.00014246,2]
[398085566,1765362662856,-719.48,0.00014246,2]
[398085567,1765362662865,-500.0,0.00014246,2]
[398085568,1765362662874,-670.86,0.00014246,2]
[398085569,1765362662883,-500.0,0.00014246,2]
[398085570,1765362662892,-572.95,0.00014246,2]
[398085571,1765362662901,-500.0,0.00014246,2]
[398085572,1765362662912,-1085.24,0.00014246,2]
[398085573,1765362662920,-500.0,0.00014246,2]
[398085574,1765362662929,-500.0,0.00014246,2]
[398085575,1765362662938,-690.39,0.00014246,2]
[398085576,1765362662954,-629.26,0.00014246,2]
[398085577,1765362662963,-500.0,0.00014246,2]
[398085578,1765362662972,-500.0,0.00014246,2]
[398085579,1765362662981,-500.0,0.00014246,2]
[398085580,1765362662989,-500.0,0.00014246,2]
[398085581,1765362662998,-500.0,0.00014246,2]
[398085582,1765362663007,-761.37,0.00014246,2]
[398085583,1765362663017,-609.45,0.00014246,2]
[398085584,1765362663026,-500.0,0.00014246,2]
[398085585,1765362663035,-500.0,0.00014246,2]
[398085586,1765362663044,-500.0,0.00014246,2]
[398085587,1765362663053,-500.0,0.00014246,2]
[398085588,1765362663063,-523.04,0.00014246,2]
[398085589,1765362663073,-500.0,0.00014246,2]
[398085590,1765362663082,-512.92,0.00014246,2]
[398085591,1765362663092,-500.0,0.00014246,2]
[398085592,1765362663102,-500.0,0.00014246,2]
[398085593,1765362663111,-500.0,0.00014246,2]
[398085594,1765362663120,-500.0,0.00014246,2]
[398085595,1765362663129,-268.81310518,0.00014246,2]
[398085596,1765362663138,-500.0,0.00014246,2]
[398085597,1765362663147,-500.0,0.00014246,2]
[398085598,1765362663157,-583.16,0.00014246,2]
[398085599,1765362663168,-500.0,0.00014246,2]
[398085600,1765362663178,-500.0,0.00014246,2]
[398085601,1765362663187,-500.0,0.00014246,2]
[398085602,1765362663197,-500.0,0.00014246,2]
[398085603,1765362663206,-500.0,0.00014246,2]
[398085604,1765362663215,-500.0,0.00014246,2]
[398085605,1765362663225,-500.0,0.00014246,2]
[398085606,1765362663234,-500.0,0.00014246,2]
[398085607,1765362663244,-500.0,0.00014246,2]
[398085608,1765362663253,-1129.19,0.00014246,2]
[398085609,1765362663262,-627.47,0.00014246,2]
[398085610,1765362663272,-500.0,0.00014246,2]
[398085611,1765362663281,-500.0,0.00014246,2]
[398085612,1765362663291,-500.0,0.00014246,2]
[398085613,1765362663300,-500.0,0.00014246,2]
[398085614,1765362663310,-500.0,0.00014246,2]
[398085615,1765362663319,-523.71,0.00014246,2]
[398085616,1765362663328,-500.0,0.00014246,2]
[398085617,1765362663342,-500.0,0.00014246,2]
[398085618,1765362663352,-898.21,0.00014246,2]
[398085619,1765362663361,-500.0,0.00014246,2]
[398085620,1765362663371,-589.48,0.00014246,2]
[398085621,1765362663381,-500.0,0.00014246,2]
[398085622,1765362663390,-500.0,0.00014246,2]
[398085623,1765362663399,-500.0,0.00014246,2]
[398085624,1765362663408,-500.0,0.00014246,2]
[398085625,1765362663419,-500.0,0.00014246,2]
[398085626,1765362663428,-500.0,0.00014246,2]
[398085627,1765362663437,-574.64,0.00014246,2]
[398085628,1765362663446,-500.0,0.00014246,2]
[398085629,1765362663456,-500.0,0.00014246,2]
[398085630,1765362663465,-1098.72,0.00014246,2]
[398085631,1765362663474,-201.7075407,0.00014246,2]
[398085632,1765362663484,-500.0,0.00014246,2]
[398085633,1765362663494,-548.27,0.00014246,2]
[398085634,1765362663505,-500.0,0.00014246,2]
[398085635,1765362663514,-567.11217731,0.00014246,2]
[398085636,1765362663523,-500.0,0.00014246,2]
[398085637,1765362663532,-500.0,0.00014246,2]
[398085638,1765362663542,-500.0,0.00014246,2]
[398085639,1765362663551,-716.9,0.00014246,2]
[398085640,1765362663561,-500.0,0.00014246,2]
[398085641,1765362663571,-500.0,0.00014246,2]
[398085642,1765362663583,-500.0,0.00014246,2]
[398085643,1765362663593,-888.25,0.00014246,2]
[398085644,1765362663602,-1070.93,0.00014246,2]
[398085645,1765362663611,-500.0,0.00014246,2]
[398085646,1765362663622,-500.0,0.00014246,2]
[398085647,1765362663632,-556.12,0.00014246,2]
[398085648,1765362663641,-521.45,0.00014246,2]
[398085649,1765362663651,-500.0,0.00014246,2]
[398085650,1765362663664,-500.0,0.00014246,2]
[398085651,1765362663673,-500.0,0.00014246,2]
[398085652,1765362663682,-1028.07,0.00014246,2]
[398085653,1765362663692,-544.81,0.00014246,2]
[398085654,1765362663701,-500.0,0.00014246,2]
[398085655,1765362663710,-500.0,0.00014246,2]
[398085656,1765362663719,-500.0,0.00014246,2]
[398085657,1765362663727,-706.17,0.00014246,2]
[398085658,1765362663737,-500.0,0.00014246,2]
[398085659,1765362663746,-500.0,0.00014246,2]
[398085660,1765362663755,-500.0,0.00014246,2]
[398085661,1765362663764,-500.0,0.00014246,2]
[398085662,1765362663773,-500.0,0.00014246,2]
[398085663,1765362663783,-500.0,0.00014246,2]
[398085664,1765362663792,-500.0,0.00014246,2]
[398085665,1765362663801,-500.0,0.00014246,2]
[398085666,1765362663810,-666.68,0.00014246,2]
[398085667,1765362663819,-500.0,0.00014246,2]
[398085668,1765362663828,-500.0,0.00014246,2]
[398085669,1765362663838,-500.0,0.00014246,2]
[398085670,1765362663847,-500.0,0.00014246,2]
[398085671,1765362663856,-668.57,0.00014246,2]
[398085672,1765362663865,-500.0,0.00014246,2]
[398085673,1765362663875,-558.51,0.00014246,2]
[398085674,1765362663884,-664.84,0.00014246,2]
[398085675,1765362663896,-500.0,0.00014246,2]
[398085676,1765362663905,-725.47,0.00014246,2]
[398085677,1765362663915,-500.0,0.00014246,2]
[398085678,1765362663924,-616.24,0.00014246,2]
[398085679,1765362663934,-500.0,0.00014246,2]
[398085680,1765362663945,-500.0,0.00014246,2]
[398085681,1765362663955,-500.0,0.00014246,2]
[398085682,1765362663964,-500.0,0.00014246,2]
[398085683,1765362663975,-500.0,0.00014246,2]
[398085684,1765362663983,-500.0,0.00014246,2]
[398085685,1765362663992,-500.0,0.00014246,2]
[398085686,1765362664001,-518.13,0.00014246,2]
[398085687,1765362664011,-500.0,0.00014246,2]
[398085688,1765362664020,-500.0,0.00014246,2]
[398085689,1765362664029,-500.0,0.00014246,2]
[398085690,1765362664038,-500.0,0.00014246,2]
[398085691,1765362664048,-500.0,0.00014246,2]
[398085692,1765362664059,-500.0,0.00014246,2]
[398085693,1765362664070,-500.0,0.00014246,2]
[398085694,1765362664078,-500.0,0.00014246,2]
[398085695,1765362664089,-500.0,0.00014246,2]
[398085696,1765362664100,-504.10993175,0.00014246,2]
[398085697,1765362664110,-2822.19,0.00014246,2]
[398085698,1765362664120,-500.0,0.00014246,2]
[398085699,1765362664130,-891.67,0.00014246,2]
[398085700,1765362664139,-647.78,0.00014246,2]
[398085701,1765362664150,-500.0,0.00014246,2]
[398085702,1765362664160,-500.0,0.00014246,2]
[398085703,1765362664170,-927.31,0.00014246,2]
[398085704,1765362664179,-500.0,0.00014246,2]
[398085705,1765362664188,-500.0,0.00014246,2]
[398085706,1765362664197,-500.0,0.00014246,2]
[398085707,1765362664206,-645.97,0.00014246,2]
[398085708,1765362664216,-500.0,0.00014246,2]
[398085709,1765362664225,-500.59,0.00014246,2]
[398085710,1765362664234,-681.49,0.00014246,2]
[398085711,1765362664242,-541.17,0.00014246,2]
[398085712,1765362664252,-500.0,0.00014246,2]
[398085713,1765362664261,-507.49,0.00014246,2]
[398085714,1765362664270,-500.0,0.00014246,2]
[398085715,1765362664280,-500.0,0.00014246,2]
[398085716,1765362664290,-500.0,0.00014246,2]
[398085717,1765362664300,-500.0,0.00014246,2]
[398085718,1765362664310,-500.0,0.00014246,2]
[398085719,1765362664320,-500.0,0.00014246,2]
[398085720,1765362664330,-572.8,0.00014246,2]
[398085721,1765362664340,-534.13,0.00014246,2]
[398085722,1765362664349,-466.92369341,0.00014246,2]
[398085723,1765362664358,-500.0,0.00014246,2]
[398085724,1765362664367,-500.0,0.00014246,2]
[398085725,1765362664377,-1360.91,0.00014246,2]
[398085726,1765362664387,-500.0,0.00014246,2]
[398085727,1765362664396,-623.43042453,0.00014246,2]
[398085728,1765362664405,-500.0,0.00014246,2]
[398085729,1765362664416,-500.0,0.00014246,2]
[398085730,1765362664425,-500.0,0.00014246,2]
[398085731,1765362664435,-515.36,0.00014246,2]
[398085732,1765362664444,-1316.9,0.00014246,2]
[398085733,1765362664455,-151.0,0.00014246,2]
[398085734,1765362664464,-500.0,0.00014246,2]
[398085735,1765362664473,-500.0,0.00014246,2]
[398085736,1765362664483,-551.47,0.00014246,2]
[398085737,1765362664492,-500.0,0.00014246,2]
[398085738,1765362664502,-500.0,0.00014246,2]
[398085739,1765362664511,-500.0,0.00014246,2]
[398085740,1765362664522,-500.0,0.00014246,2]
[398085741,1765362664531,-600.8,0.00014246,2]
[398085742,1765362664541,-500.0,0.00014246,2]
[398085743,1765362664551,-500.0,0.00014246,2]
[398085744,1765362664560,-182.92884162,0.00014246,2]
[398085745,1765362664570,-500.0,0.00014246,2]
[398085746,1765362664584,-500.0,0.00014246,2]
[398085747,1765362664593,-500.0,0.00014246,2]
[398085748,1765362664603,-500.0,0.00014246,2]
[398085749,1765362664613,-500.0,0.00014246,2]
[398085750,1765362664623,-500.0,0.00014246,2]
[398085751,1765362664633,-500.0,0.00014246,2]
[398085752,1765362664642,-500.0,0.00014246,2]
[398085753,1765362664651,-504.81,0.00014246,2]
[398085754,1765362664663,-500.0,0.00014246,2]
[398085755,1765362664673,-3119.14,0.00014246,2]
[398085756,1765362664683,-500.0,0.00014246,2]
[398085757,1765362664693,-516.03,0.00014246,2]
[398085758,1765362664702,-500.0,0.00014246,2]
[398085759,1765362664712,-500.0,0.00014246,2]
[398085760,1765362664722,-500.0,0.00014246,2]
[398085761,1765362664730,-500.0,0.00014246,2]
[398085762,1765362664740,-500.0,0.00014246,2]
[398085763,1765362664749,-511.2,0.00014246,2]
[398085764,1765362664758,-600.22,0.00014246,2]
[398085765,1765362664767,-1067.97,0.00014246,2]
[398085766,1765362664776,-500.0,0.00014246,2]
[398085767,1765362664785,-523.76,0.00014246,2]
[398085768,1765362664795,-544.44,0.00014246,2]